{"text_format":"1","workbook":"xlsx","n_sheets":1,"sheets":["Sheet1"],"not_rendered":{"charts":0,"images":0,"macros":1,"external_links":0,"defined_names":142,"comments":1,"pivot_tables":0},"unopened":[],"bounds":{"document_bytes":16777216,"sheet_cells":100000,"rows_first":2000,"rows_last":500,"rows_between":2000,"halvings":0,"cell_chars":16384,"cell_head_chars":4096},"cells_cut":0,"cells_raw":0,"read":"whole","date_system":"1900"}

{"sheet":"Sheet1","index":0,"n_rows":589,"n_cols":38,"rows_kept":589,"cut":false,"hidden":false,"merged":[[431,14,431,16],[413,14,413,16],[413,17,413,18],[447,3,447,13],[447,14,447,16],[441,3,441,13],[440,14,440,16],[441,14,441,16],[442,3,442,13],[428,3,428,13],[429,3,429,13],[430,3,430,13],[432,3,432,13],[433,3,433,13],[433,14,433,16],[416,14,416,16],[419,3,419,13],[419,14,419,16],[419,17,419,18],[417,3,417,13],[417,14,417,16],[417,17,417,18],[416,3,416,13],[418,3,418,13],[295,14,295,15],[296,14,296,15],[295,16,295,17],[296,16,296,17],[295,18,295,19],[296,18,296,19],[356,3,356,13],[355,14,355,16],[356,14,356,16],[351,3,351,13],[322,11,322,13],[322,3,322,10],[350,3,350,13],[351,14,351,16],[350,14,350,16],[352,3,352,13],[352,14,352,16],[333,11,333,13],[333,3,333,10],[337,11,337,13],[338,11,338,13],[339,11,339,13],[340,11,340,13],[341,11,341,13],[406,3,406,13],[406,14,406,16],[431,3,431,13],[153,23,153,24],[167,3,167,10],[167,11,167,15],[167,16,167,18],[167,19,167,21],[167,22,167,25],[258,3,258,13],[258,14,258,16],[258,17,258,19],[155,23,155,24],[165,3,165,10],[166,3,166,10],[165,11,165,15],[166,11,166,15],[165,16,165,18],[166,16,166,18],[165,22,165,25],[408,3,408,13],[408,14,408,16],[295,3,295,13],[296,3,296,13],[122,22,122,23],[123,22,123,23],[122,24,122,25],[123,24,123,25],[152,20,152,22],[153,20,153,22],[154,3,154,10],[154,11,154,13],[154,14,154,16],[154,17,154,19],[154,20,154,22],[152,23,152,24],[154,23,154,24],[124,24,124,25],[125,3,125,10],[125,11,125,12],[125,13,125,15],[125,16,125,18],[125,19,125,21],[125,22,125,23],[125,24,125,25],[124,3,124,10],[124,11,124,12],[124,13,124,15],[105,3,105,13],[106,3,106,13],[105,14,105,16],[106,14,106,16],[105,17,105,19],[106,17,106,19],[122,3,122,10],[123,3,123,10],[122,11,122,12],[123,11,123,12],[122,13,122,15],[123,13,123,15],[122,16,122,18],[123,16,123,18],[122,19,122,21],[123,19,123,21],[121,3,121,10],[121,11,121,12],[121,13,121,15],[119,3,120,10],[119,11,120,12],[119,13,120,15],[107,3,107,13],[107,14,107,16],[20,11,21,19],[414,17,414,18],[415,17,415,18],[416,17,416,18],[444,3,444,13],[445,3,445,13],[444,14,444,16],[445,14,445,16],[414,3,414,13],[415,3,415,13],[429,14,429,16],[428,14,428,16],[430,14,430,16],[432,14,432,16],[420,3,420,13],[420,14,420,16],[420,17,420,18],[421,3,421,13],[421,14,421,16],[421,17,421,18],[414,14,414,16],[355,3,355,13],[407,3,407,13],[407,14,407,16],[450,3,450,13],[450,14,450,16],[458,3,458,13],[458,14,458,16],[440,3,440,13],[448,3,448,13],[448,14,448,16],[449,3,449,13],[449,14,449,16],[442,14,442,16],[443,3,443,13],[443,14,443,16],[446,3,446,13],[446,14,446,16],[418,14,418,16],[418,17,418,18],[411,3,411,13],[411,14,411,16],[415,14,415,16],[412,3,412,13],[412,14,412,16],[412,17,412,18],[413,3,413,13],[410,3,410,13],[409,3,409,13],[409,14,409,16],[410,14,410,16],[387,3,387,13],[387,14,387,16],[388,3,388,13],[388,14,388,16],[390,3,390,13],[390,14,390,16],[391,3,391,13],[391,14,391,16],[392,3,392,13],[392,14,392,16],[389,3,389,13],[389,14,389,16],[393,3,393,13],[393,14,393,16],[394,3,394,13],[394,14,394,16],[396,3,396,13],[396,14,396,16],[405,3,405,13],[405,14,405,16],[392,17,392,18],[393,17,393,18],[394,17,394,18],[396,17,396,18],[395,3,395,13],[395,14,395,16],[395,17,395,18],[375,3,375,13],[375,14,375,16],[376,3,376,13],[376,14,376,16],[386,3,386,13],[386,14,386,16],[384,7,384,18],[370,3,370,13],[370,14,370,16],[371,3,371,13],[371,14,371,16],[372,3,372,13],[372,14,372,16],[373,3,373,13],[373,14,373,16],[374,3,374,13],[374,14,374,16],[357,3,357,13],[357,14,357,16],[358,3,358,13],[358,14,358,16],[359,3,359,13],[359,14,359,16],[360,3,360,13],[360,14,360,16],[369,3,369,13],[369,14,369,16],[330,3,330,10],[331,3,331,10],[332,3,332,10],[323,11,323,13],[324,11,324,13],[325,11,325,13],[326,11,326,13],[327,11,327,13],[328,11,328,13],[329,11,329,13],[330,11,330,13],[331,11,331,13],[332,11,332,13],[321,11,321,13],[321,3,321,10],[323,3,323,10],[324,3,324,10],[325,3,325,10],[326,3,326,10],[327,3,327,10],[328,3,328,10],[329,3,329,10],[301,3,301,13],[301,14,301,15],[301,16,301,17],[301,18,301,19],[302,18,302,19],[317,8,317,14],[317,19,317,20],[317,25,317,26],[319,13,319,14],[314,11,314,26],[309,11,309,26],[298,3,298,13],[298,14,298,15],[298,16,298,17],[298,18,298,19],[299,3,299,13],[299,14,299,15],[299,16,299,17],[299,18,299,19],[300,3,300,13],[300,14,300,15],[300,16,300,17],[300,18,300,19],[297,3,297,13],[297,14,297,15],[297,16,297,17],[297,18,297,19],[287,3,287,13],[287,14,287,15],[287,16,287,17],[285,3,286,13],[285,14,286,15],[285,16,286,17],[289,3,289,13],[294,3,294,13],[289,14,289,15],[294,14,294,15],[289,16,289,17],[294,16,294,17],[289,18,289,19],[294,18,294,19],[285,18,286,19],[287,18,287,19],[288,3,288,13],[288,14,288,15],[288,16,288,17],[288,18,288,19],[186,16,186,20],[187,16,187,20],[188,16,188,20],[189,16,189,20],[186,21,186,25],[187,21,187,25],[188,21,188,25],[194,16,194,17],[194,23,194,25],[53,8,53,11],[59,3,59,28],[39,8,39,14],[38,15,38,20],[39,21,39,27],[49,5,49,27],[51,11,51,13],[39,15,39,20],[51,5,51,7],[51,17,51,27],[53,17,53,19],[86,14,86,16],[86,17,86,19],[87,14,87,16],[87,17,87,19],[86,3,86,13],[87,3,87,13],[103,3,103,13],[103,14,103,16],[103,17,103,19],[104,3,104,13],[104,14,104,16],[104,17,104,19],[88,3,88,13],[88,14,88,16],[88,17,88,19],[102,3,102,13],[102,14,102,16],[102,17,102,19],[107,17,107,19],[108,3,108,13],[108,14,108,16],[108,17,108,19],[119,16,119,21],[119,22,119,23],[120,22,120,23],[121,22,121,23],[119,24,119,25],[120,24,120,25],[121,24,121,25],[120,16,120,18],[121,16,121,18],[120,19,120,21],[121,19,121,21],[124,16,124,18],[124,19,124,21],[124,22,124,23],[126,24,126,25],[126,3,126,10],[126,11,126,12],[126,13,126,15],[126,16,126,18],[126,19,126,21],[126,22,126,23],[149,20,150,22],[151,20,151,22],[149,23,150,24],[151,23,151,24],[151,11,151,13],[149,11,150,13],[149,14,150,16],[151,14,151,16],[149,17,150,19],[151,17,151,19],[149,3,150,10],[151,3,151,10],[181,21,181,25],[182,21,184,25],[181,16,181,20],[182,16,184,20],[165,19,165,21],[166,19,166,21],[155,3,155,10],[155,11,155,13],[155,14,155,16],[155,17,155,19],[155,20,155,22],[166,22,166,25],[168,3,168,10],[168,11,168,15],[168,16,168,18],[168,19,168,21],[168,22,168,25],[152,3,152,10],[153,3,153,10],[152,11,152,13],[153,11,153,13],[152,14,152,16],[153,14,153,16],[181,11,181,15],[182,11,184,15],[182,3,184,10],[152,17,152,19],[191,21,191,22],[191,23,191,25],[192,16,192,17],[193,16,193,17],[189,21,189,25],[192,23,192,25],[193,23,193,25],[190,11,190,15],[185,11,185,15],[192,3,192,10],[193,3,193,10],[153,17,153,19],[192,18,192,20],[190,3,190,10],[191,3,191,10],[190,16,190,20],[190,21,190,25],[185,21,185,25],[186,3,186,10],[235,3,235,10],[200,11,200,12],[200,13,200,15],[201,11,201,12],[201,13,201,15],[202,11,202,12],[202,13,202,15],[203,11,203,12],[203,13,203,15],[204,11,204,12],[204,13,204,15],[205,11,205,12],[205,13,205,15],[206,11,206,12],[206,13,206,15],[215,3,215,10],[216,3,216,10],[217,3,217,10],[218,3,218,10],[219,3,219,10],[220,3,220,10],[221,3,221,10],[214,3,214,10],[222,3,223,10],[185,16,185,20],[195,16,195,17],[193,18,193,20],[194,18,194,20],[195,18,195,20],[212,11,212,12],[212,13,212,15],[213,11,213,12],[213,13,213,15],[196,16,196,17],[197,16,197,17],[198,16,198,17],[199,16,199,17],[200,16,200,17],[201,16,201,17],[202,16,202,17],[203,16,203,17],[213,16,213,17],[207,18,207,20],[208,18,208,20],[209,18,209,20],[210,18,210,20],[187,11,187,15],[188,11,188,15],[214,13,214,15],[199,13,199,15],[207,11,207,12],[207,13,207,15],[208,11,208,12],[208,13,208,15],[189,11,189,15],[185,3,185,10],[210,11,210,12],[210,13,210,15],[209,13,209,15],[195,3,195,10],[194,3,194,10],[187,3,187,10],[188,3,188,10],[186,11,186,15],[189,3,189,10],[225,3,225,10],[191,13,191,15],[191,11,191,12],[191,16,191,17],[191,18,191,20],[192,11,192,12],[192,13,192,15],[193,11,193,12],[193,13,193,15],[194,11,194,12],[194,13,194,15],[195,11,195,12],[195,13,195,15],[196,11,196,12],[196,13,196,15],[197,11,197,12],[197,13,197,15],[198,11,198,12],[198,13,198,15],[199,11,199,12],[211,11,211,12],[211,13,211,15],[209,11,209,12],[214,11,214,12],[215,13,215,15],[216,11,216,12],[216,13,216,15],[217,11,217,12],[217,13,217,15],[218,11,218,12],[218,13,218,15],[219,11,219,12],[219,13,219,15],[215,11,215,12],[220,11,220,12],[220,13,220,15],[221,11,221,12],[221,13,221,15],[222,11,222,12],[222,13,222,15],[223,11,223,12],[223,13,223,15],[224,13,224,15],[224,11,224,12],[225,11,225,12],[225,13,225,15],[235,13,235,15],[226,13,226,15],[227,13,227,15],[228,13,228,15],[229,13,229,15],[230,13,230,15],[231,13,231,15],[232,13,232,15],[233,13,233,15],[234,13,234,15],[226,11,226,12],[227,11,227,12],[228,11,228,12],[229,11,229,12],[230,11,230,12],[231,11,231,12],[232,11,232,12],[233,11,233,12],[234,11,234,12],[235,11,235,12],[214,16,214,17],[215,16,215,17],[216,16,216,17],[217,16,217,17],[218,16,218,17],[219,16,219,17],[220,16,220,17],[204,16,204,17],[205,16,205,17],[206,16,206,17],[207,16,207,17],[208,16,208,17],[209,16,209,17],[210,16,210,17],[211,16,211,17],[212,16,212,17],[235,16,235,17],[192,21,192,22],[193,21,193,22],[194,21,194,22],[195,21,195,22],[196,21,196,22],[197,21,197,22],[198,21,198,22],[199,21,199,22],[200,21,200,22],[201,21,201,22],[202,21,202,22],[203,21,203,22],[204,21,204,22],[205,21,205,22],[206,21,206,22],[207,21,207,22],[208,21,208,22],[209,21,209,22],[221,16,221,17],[222,16,222,17],[223,16,223,17],[224,16,224,17],[225,16,225,17],[217,18,217,20],[218,18,218,20],[225,18,225,20],[219,18,219,20],[220,18,220,20],[221,18,221,20],[222,18,222,20],[223,18,223,20],[224,18,224,20],[233,16,233,17],[234,16,234,17],[226,16,226,17],[227,16,227,17],[228,16,228,17],[229,16,229,17],[231,21,231,22],[232,21,232,22],[233,21,233,22],[234,21,234,22],[226,18,226,20],[227,18,227,20],[228,18,228,20],[230,16,230,17],[231,16,231,17],[232,16,232,17],[211,18,211,20],[212,18,212,20],[213,18,213,20],[214,18,214,20],[204,18,204,20],[205,18,205,20],[206,18,206,20],[235,21,235,22],[218,21,218,22],[219,21,219,22],[220,21,220,22],[221,21,221,22],[222,21,222,22],[223,21,223,22],[224,21,224,22],[225,21,225,22],[226,21,226,22],[227,21,227,22],[228,21,228,22],[215,21,215,22],[216,21,216,22],[217,21,217,22],[215,18,215,20],[216,18,216,20],[196,18,196,20],[197,18,197,20],[198,18,198,20],[199,18,199,20],[200,18,200,20],[201,18,201,20],[201,23,201,25],[202,23,202,25],[203,23,203,25],[202,18,202,20],[203,18,203,20],[195,23,195,25],[196,23,196,25],[197,23,197,25],[198,23,198,25],[199,23,199,25],[200,23,200,25],[208,23,208,25],[209,23,209,25],[204,23,204,25],[205,23,205,25],[206,23,206,25],[207,23,207,25],[210,21,210,22],[211,21,211,22],[212,21,212,22],[213,21,213,22],[216,23,216,25],[217,23,217,25],[218,23,218,25],[219,23,219,25],[220,23,220,25],[215,23,215,25],[210,23,210,25],[211,23,211,25],[212,23,212,25],[213,23,213,25],[214,23,214,25],[214,21,214,22],[233,23,233,25],[221,23,221,25],[222,23,222,25],[223,23,223,25],[224,23,224,25],[225,23,225,25],[226,23,226,25],[227,23,227,25],[228,23,228,25],[234,23,234,25],[235,23,235,25],[226,3,226,10],[227,3,227,10],[228,3,228,10],[229,3,229,10],[230,3,230,10],[231,3,231,10],[232,3,232,10],[233,3,233,10],[234,3,234,10],[229,23,229,25],[230,23,230,25],[231,23,231,25],[232,23,232,25],[229,18,229,20],[230,18,230,20],[231,18,231,20],[232,18,232,20],[233,18,233,20],[234,18,234,20],[235,18,235,20],[229,21,229,22],[230,21,230,22],[244,11,244,15],[244,16,244,20],[244,21,244,25],[245,3,245,10],[245,11,245,15],[246,3,246,10],[247,3,247,10],[247,11,247,15],[246,11,246,15],[249,11,249,15],[245,16,245,20],[245,21,245,25],[246,16,246,20],[247,16,247,20],[248,16,248,20],[249,16,249,20],[246,21,246,25],[247,21,247,25],[248,21,248,25],[249,21,249,25],[500,15,501,16],[502,15,502,16],[490,3,490,28],[471,3,471,10],[471,11,471,13],[471,14,471,18],[471,19,471,21],[482,3,482,16],[482,17,482,19],[470,14,470,18],[472,14,472,18],[470,19,470,21],[472,19,472,21],[63,9,63,21],[290,3,290,13],[290,14,290,15],[290,16,290,17],[290,18,290,19],[291,3,291,13],[291,14,291,15],[265,3,265,28],[256,3,256,13],[256,14,256,16],[256,17,256,19],[257,3,257,13],[257,14,257,16],[257,17,257,19],[259,3,259,13],[259,14,259,16],[259,17,259,19],[248,3,248,10],[248,11,248,15],[249,3,249,10],[588,3,588,28],[553,3,553,28],[531,3,531,28],[545,13,545,15],[544,13,544,15],[545,16,545,18],[544,16,544,18],[544,3,544,12],[545,3,545,12],[546,13,546,15],[546,16,546,18],[575,3,575,19],[560,3,566,28],[585,3,585,19],[586,3,586,19],[576,3,576,19],[577,3,577,19],[578,3,578,19],[579,3,579,19],[580,3,580,19],[581,3,581,19],[582,3,582,19],[583,3,583,19],[584,3,584,19],[517,15,517,20],[517,25,517,27],[520,3,520,9],[521,3,521,9],[522,3,522,9],[523,3,523,9],[524,3,524,9],[525,3,525,9],[520,10,520,12],[521,10,521,12],[10,3,10,14],[406,17,411,18],[405,17,405,18],[387,17,391,18],[386,17,386,18],[522,10,522,12],[505,3,505,6],[505,7,505,8],[505,9,505,11],[505,12,505,14],[505,15,505,16],[36,3,36,28],[480,17,480,19],[481,17,481,19],[483,17,483,19],[480,3,480,16],[481,3,481,16],[483,3,483,16],[459,3,459,13],[459,14,459,16],[470,3,470,10],[470,11,470,13],[472,3,472,10],[472,11,472,13],[507,19,507,20],[291,16,291,17],[291,18,291,19],[292,3,292,13],[292,14,292,15],[292,16,292,17],[292,18,292,19],[293,3,293,13],[293,14,293,15],[293,16,293,17],[293,18,293,19],[353,3,353,13],[353,14,353,16],[354,3,354,13],[354,14,354,16],[504,15,504,16],[503,3,503,6],[503,7,503,8],[503,9,503,11],[503,12,503,14],[503,15,503,16],[504,3,504,6],[504,7,504,8],[504,9,504,11],[504,12,504,14],[510,13,510,14],[502,3,502,6],[502,7,502,8],[500,3,501,6],[500,7,501,8],[523,10,523,12],[524,10,524,12],[525,10,525,12],[517,5,517,10],[500,9,501,11],[500,12,501,14],[502,9,502,11],[502,12,502,14]]}
[null,null,null,null,null,null,null,null,null,null,null,null,null,null,null,null,null,null,null,null,null,null,null,null,null,null,null,null,null,null,null,null,null,null,null,null,null,"Error"]
[null,null,null,"       INDIVIDUAL TAX RETURN INFORMATION FOR THE YEAR ENDED 30 JUNE 2021",null,null,null,null,null,null,null,null,null,null,null,null,null,null,null,null,null,null,null,null,null,null,null,null,null,null,null,null,null,null,null,null,null,"Count"]
[]
[null,null,null,"This form is interactive. Depending on your responses to the \"Yes / No\" questions, you will be prompted for further information. When you"]
[null,null,null,"have completed the form, please save it to your device, then send it to us by email or by using the \"Online Submission\" page on our website."]
[null,null,null,"Depending on your circumstances, it may also be necessary to attach additional information or supporting documents. If this is the case,"]
[null,null,null,"these will be listed at the end of the form, after you have completed all questions. We will contact you if we need further details or"]
[null,null,null,"clarification of any matters."]
[]
[null,null,null,"Please answer ALL of the prompted questions. All monetary information should be rounded to the nearest whole dollar."]
[null,null,null,"All input is to boxes like this. Dates should be entered as dd/mm/yy",null,null,null,null,null,null,null,null,null,null,null," After each entry, press \"ENTER\" or select another input cell."]
[null,null,null,"It may occasionally be necessary to scroll down to see the next prompted question (use your mouse wheel, or the right-hand scroll bar)."]
[null,null,null,"If you select the wrong \"Yes / No\" answer to a question, you can correct this simply by selecting again."]
[null,null,null,"After you complete and verify the form, Red font will indicate any missing information."]
[]
[null,null,null,"To use this form, you MUST have \"Macros\" enabled in your version of Microsoft Excel."]
[null,null,null,"If you see a Security Warning that \"Macros have been disabled\", simply click on the \"Options\" button and select \"Enable this content\"."]
[null,null,null,"Otherwise, Select the \"File\" menu in the top left-hand corner (or, in older versions, the \"Office\" button), then:"]
[null,null,null," - Options / Trust Center / Trust Center Settings / Macro Settings, and choose \"Enable all macros . . . . \""]
[]
[null,null,null,null,null,null,null,null,null,null,null,"You can test your Macro settings HERE >>"]
[]
[]
[]
[]
[null,null,null,"Important Note:"]
[null,null,null,"This form is intended merely to help you provide the information we need to prepare your income tax return. It covers the key income and"]
[null,null,null,"expense items which are relevant for most individual taxpayers. No warranty is made of completeness, and you remain primarily responsible"]
[null,null,null,"to provide us with complete and accurate information. If you have derived any other taxable income which is NOT included on this form"]
[null,null,null,"(for example, income from business activities), please ensure that this is separately disclosed."]
[]
[null,null,null,"By completing this form and submitting it to us, you are confirming that:"]
[null,null,null," - you have read, and agree with, the Terms of Engagement available on our website, and"]
[null,null,null," - you agree to appoint KMT Consulting as your Tax Agent (if you have not already done so)."]
[]
[]
[null,null,null,"YOUR NAME AND CONTACT INFORMATION"]
[]
[null,null,null,null,null,null,null,null,"First Name (full legal name)",null,null,null,null,null,null,"Middle Name (optional)",null,null,null,null,null,"Surname (Family name)"]
[null,null,null,"Please enter your name:"]
[null,null,null,{"$f":"IF(finalise=\"\",\"\",IF(OR(firstname=\"\",V40=\"\"),\"Input required\",\"\"))","v":""},null,null,null,null,null,null,null,null,null,null,null,null,null,null,null,null,null,null,null,null,null,null,null,null,null,null,null,null,null,null,null,null,null,{"$f":"IF(D41=\"\",0,1)","v":0}]
[null,null,null,"Are you an existing client of KMT Consulting?",null,null,null,null,null,null,null,null,null,null,null,null,null,null,null,null,null,{"$f":"IF(B42=\"\",\"\",B42)","v":""}]
[null,null,null,{"$f":"IF(existingyn=\"No\",\"Please provide proof of identity (eg: copy of birth certificate, driver's licence or passport)\",\"\")","v":""}]
[]
[null,null,null,"Have any of your contact details changed since your last tax lodgement? (address / phone / email)?",null,null,null,null,null,null,null,null,null,null,null,null,null,null,null,null,null,{"$f":"IF(B45=\"\",\"\",B45)","v":""}]
[]
[]
[null,null,null,"Please provide your current details:"]
[]
[null,null,null,"Address:"]
[]
[null,null,null,"Phone:",null,null,null,null,null,"Mobile:",null,null,null,null,null,"Email:"]
[null,null,null,{"$f":"IF(finalise=\"\",\"\",IF(AND(detailsyn=\"Yes\",clientaddress=\"\",F52=\"\",L52=\"\",R52=\"\"),\"Input required\",\"\"))","v":""},null,null,null,null,null,null,null,null,null,null,null,null,null,null,null,null,null,null,null,null,null,null,null,null,null,null,null,null,null,null,null,null,null,{"$f":"IF(D53=\"\",0,1)","v":0}]
[null,null,null,"Your Tax File Number:",null,null,null,null,null,null,null,null,null,"Your date of birth:",null,null,null,null,null,null,"  dd/mm/yy"]
[null,null,null,{"$f":"IF(finalise=\"\",\"\",IF(AND(existingyn=\"No\",OR(clientaddress=\"\",I54=\"\",R54=\"\")),\"Input Required\",\"\"))","v":""},null,null,null,null,null,null,null,null,null,null,null,null,null,null,null,null,null,null,null,null,null,null,null,null,null,null,null,null,null,null,null,null,null,{"$f":"IF(D55=\"\",0,1)","v":0}]
[]
[]
[]
[]
[null,null,null,"INCOME DETAILS"]
[]
[null,null,null,"Did you earn any income as an employee?",null,null,null,null,null,null,null,null,null,null,null,null,null,null,null,null,null,{"$f":"IF(B62=\"\",\"\",B62)","v":""}]
[]
[null,null,null,"What is your occupation?"]
[]
[null,null,null,"Are ALL your payment summaries finalised and available on \"myGov\"?",null,null,null,null,null,null,null,null,null,null,null,null,null,null,null,null,null,{"$f":"IF(B66=\"\",\"\",B66)","v":""}]
[]
[null,null,null,"Please attach copies of any payment summaries which are NOT available on \"myGov.\""]
[]
[]
[null,null,null,"Did you receive any Employment Termination Payments (ETP's)?",null,null,null,null,null,null,null,null,null,null,null,null,null,null,null,null,null,{"$f":"IF(B71=\"\",\"\",B71)","v":""}]
[]
[]
[null,null,null,"Are ALL your ETP summaries finalised and available on \"myGov\"?",null,null,null,null,null,null,null,null,null,null,null,null,null,null,null,null,null,{"$f":"IF(B74=\"\",\"\",B74)","v":""}]
[]
[null,null,null,"Please attach copies of any ETP summaries which are NOT available on \"myGov.\""]
[]
[]
[null,null,null,"Did you receive any Government pensions or allowances?",null,null,null,null,null,null,null,null,null,null,null,null,null,null,null,null,null,{"$f":"IF(B79=\"\",\"\",B79)","v":""}]
[null,null,null,"(Do NOT include Family Tax Benefit)"]
[]
[]
[null,null,null,"These details are usually available from the ATO. Do you want us to rely on the ATO information?",null,null,null,null,null,null,null,null,null,null,null,null,null,null,null,null,null,{"$f":"IF(B83=\"\",\"\",B83)","v":""}]
[]
[null,null,null,"Please provide the following information, and attach document copies:"]
[]
[null,null,null,"Type of payment",null,null,null,null,null,null,null,null,null,null,"Gross",null,null,"Tax Withheld"]
[]
[]
[null,null,null,{"$f":"IF(finalise=\"\",\"\",IF(AND(atopensyn=\"No\",SUM(O88:T89)=0),\"Input required\",\"\"))","v":""},null,null,null,null,null,null,null,null,null,null,null,null,null,null,null,null,null,null,null,null,null,null,null,null,null,null,null,null,null,null,null,null,null,{"$f":"IF(D90=\"\",0,1)","v":0}]
[]
[null,null,null,"Did you receive any assessable payments from Superannuation Funds?",null,null,null,null,null,null,null,null,null,null,null,null,null,null,null,null,null,{"$f":"IF(B92=\"\",\"\",B92)","v":""}]
[null,null,null,{"$f":"IF(supfundyn=\"Yes\",\"Please attach payment summaries.\",\"\")","v":""}]
[]
[]
[null,null,null,"Did you receive any INTEREST from financial institutions or other sources?",null,null,null,null,null,null,null,null,null,null,null,null,null,null,null,null,null,{"$f":"IF(B96=\"\",\"\",B96)","v":""}]
[]
[]
[null,null,null,"These details are usually available from the ATO. Do you want us to rely on the ATO information?",null,null,null,null,null,null,null,null,null,null,null,null,null,null,null,null,null,{"$f":"IF(B99=\"\",\"\",B99)","v":""}]
[]
[null,null,null,"Please provide the following information (for joint accounts, include your share only):"]
[]
[null,null,null,"Name of Financial Institution (or other source)",null,null,null,null,null,null,null,null,null,null,"Gross Interest",null,null,"Tax Withheld"]
[]
[]
[]
[]
[]
[]
[null,null,null,{"$f":"IF(finalise=\"\",\"\",IF(AND(atointyn=\"No\",SUM(O104:T109)=0),\"Input required\",\"\"))","v":""},null,null,null,null,null,null,null,null,null,null,null,null,null,null,null,null,null,null,null,null,null,null,null,null,null,null,null,null,null,null,null,null,null,{"$f":"IF(D110=\"\",0,1)","v":0}]
[]
[null,null,null,"Did you receive any DIVIDENDS from share investments?",null,null,null,null,null,null,null,null,null,null,null,null,null,null,null,null,null,{"$f":"IF(B112=\"\",\"\",B112)","v":""}]
[null,null,null,"You need to declare these even if they were automatically reinvested."]
[]
[null,null,null,"These details are usually available from the ATO. Do you want us to rely on the ATO information?",null,null,null,null,null,null,null,null,null,null,null,null,null,null,null,null,null,{"$f":"IF(B115=\"\",\"\",B115)","v":""}]
[]
[]
[null,null,null,"Please provide as much of the following information as you can, or attach document copies:"]
[]
[null,null,null,"Name of Company",null,null,null,null,null,null,null,"ASX\nCode",null,"Number of\nshares held",null,null,"Dividends Received",null,null,null,null,null,"Franking",null,"Tax"]
[null,null,null,null,null,null,null,null,null,null,null,null,null,null,null,null,"Unfranked",null,null,"Franked",null,null,"Credits",null,"Withheld"]
[]
[]
[]
[]
[]
[]
[null,null,null,{"$f":"IF(finalise=\"\",\"\",IF(AND(atodivsyn=\"No\",SUM(N122:Z127)=0),\"Input required\",\"\"))","v":""},null,null,null,null,null,null,null,null,null,null,null,null,null,null,null,null,null,null,null,null,null,null,null,null,null,null,null,null,null,null,null,null,null,{"$f":"IF(D128=\"\",0,1)","v":0}]
[]
[null,null,null,"Did you receive shares or options as part of an EMPLOYEE SHARE PLAN?",null,null,null,null,null,null,null,null,null,null,null,null,null,null,null,null,null,{"$f":"IF(B130=\"\",\"\",B130)","v":""}]
[]
[null,null,null,{"$f":"IF(esasyn=\"Yes\",\"Please attach the relevant documents from your employer.\",\"\")","v":""}]
[]
[null,null,null,"Did you receive any income from MANAGED INVESTMENTS?",null,null,null,null,null,null,null,null,null,null,null,null,null,null,null,null,null,{"$f":"IF(B134=\"\",\"\",B134)","v":""}]
[null,null,null,"(NOT including superannuation funds)"]
[null,null,null,{"$f":"IF(mgdinvyn=\"Yes\",\"Your fund manager should have provided you with a Tax Statement. Please attach a copy.\",\"\")","v":""}]
[]
[]
[null,null,null,"Do you run a BUSINESS of any kind?"]
[null,null,null,"(Whether as a Sole Trader or through another structure such as a Partnership, Trust or Company)?",null,null,null,null,null,null,null,null,null,null,null,null,null,null,null,null,null,{"$f":"IF(B139=\"\",\"\",B139)","v":""}]
[]
[null,null,null,{"$f":"IF(businessyn=\"Yes\",\"This type of income is outside the scope of this form. Please see the Business Checklist on our website\",\"\")","v":""}]
[null,null,null,{"$f":"IF(businessyn=\"Yes\",\"and supply all relevant information listed thereon.\",\"\")","v":""}]
[]
[]
[null,null,null,"Have you sold any shares or property which has resulted in a CAPITAL GAIN OR LOSS?",null,null,null,null,null,null,null,null,null,null,null,null,null,null,null,null,null,{"$f":"IF(B146=\"\",\"\",B146)","v":""}]
[]
[null,null,null,"Please provide the following details AND attach supporting documents:"]
[]
[null,null,null,"Asset Description\n(eg: Share Code or Property Address)",null,null,null,null,null,null,null,"Date of Purchase",null,null,"Purchase price\n(see Note 1)",null,null,"Date of\nSale",null,null,"Sale Proceeds\n(see Note 2)",null,null,"Share of\nownership"]
[]
[]
[]
[]
[]
[]
[null,null,null,{"$f":"IF(finalise=\"\",\"\",IF(AND(cgtyn=\"Yes\",SUM(O152:Q156)+SUM(U152:W156)=0),\"Input required\",\"\"))","v":""},null,null,null,null,null,null,null,null,null,null,null,null,null,null,null,null,null,null,null,null,null,null,null,null,null,null,null,null,null,null,null,null,null,{"$f":"IF(D157=\"\",0,1)","v":0}]
[null,null,null,"Note 1:  Purchase price should include all incidental costs (eg: legal fees, stamp duties, valuations, registrations)."]
[null,null,null,"Note 2:  Sale Proceeds should be the net amount remaining AFTER deducting any selling expenses (eg: commissions, legal fees)."]
[]
[]
[null,null,null,"Did you receive any FOREIGN INCOME? (eg: foreign pensions, or from working overseas)?",null,null,null,null,null,null,null,null,null,null,null,null,null,null,null,null,null,{"$f":"IF(B162=\"\",\"\",B162)","v":""}]
[]
[null,null,null,"Please describe the nature of the income and the amount received:"]
[]
[null,null,null,"Type of Income",null,null,null,null,null,null,null,"Country",null,null,null,null,"Gross Amount",null,null,"Tax Withheld",null,null,"Currency"]
[]
[]
[]
[null,null,null,{"$f":"IF(finalise=\"\",\"\",IF(AND(forincyn=\"Yes\",SUM(Q167:V169)=0),\"Input required\",\"\"))","v":""},null,null,null,null,null,null,null,null,null,null,null,null,null,null,null,null,null,null,null,null,null,null,null,null,null,null,null,null,null,null,null,null,null,{"$f":"IF(D170=\"\",0,1)","v":0}]
[]
[]
[null,null,null,"Did you receive any RENTAL PROPERTY INCOME?",null,null,null,null,null,null,null,null,null,null,null,null,null,null,null,null,null,{"$f":"IF(B173=\"\",\"\",B173)","v":""}]
[]
[]
[null,null,null,"Are you attaching any annual rental summaries from estate agents or property managers?",null,null,null,null,null,null,null,null,null,null,null,null,null,null,null,null,null,{"$f":"IF(B176=\"\",\"\",B176)","v":""}]
[]
[null,null,null,{"$f":"IF(attachrentyn=\"Yes\",\"Please list below ONLY those income and expense items which DO NOT appear on any attached summaries:\",\"Please list below ALL income and expenses for each property:\")","v":"Please list below ALL income and expenses for each property:"}]
[null,null,null,"Pre-filled item descriptions are for your guidance only. You can change these by typing over them if necessary."]
[null,null,null,"(Include 100% of income and expenses, even if you are not the sole owner of the property)"]
[null,null,null,{"$f":"IF(finalise=\"\",\"\",IF(AND(rentyn=\"Yes\",SUM(L190:Z236)=0),\"Input required\",\"\"))","v":""},null,null,null,null,null,null,null,null,null,null,null,null,null,null,null,null,null,null,null,null,null,null,null,null,null,null,null,null,null,null,null,null,null,{"$f":"IF(D181=\"\",0,1)","v":0}]
[null,null,null,null,null,null,null,null,null,null,null,"Property 1",null,null,null,null,"Property 2",null,null,null,null,"Property 3"]
[null,null,null,"Property Address >>"]
[]
[]
[null,null,null,"No. of weeks rented (if not full year) >"]
[null,null,null,"INCOME"]
[null,null,null,"Gross Rent received"]
[null,null,null,"Reimbursements for water, electricity, etc"]
[null,null,null,"Total Rent and other income",null,null,null,null,null,null,null,{"$f":"SUM(L188:P189)","v":0},null,null,null,null,{"$f":"SUM(Q188:U189)","v":0},null,null,null,null,{"$f":"SUM(V188:Z189)","v":0}]
[null,null,null,"COSTS & EXPENSES"]
[null,null,null,"Advertising"]
[null,null,null,"Agent / Management Fees"]
[null,null,null,"Borrowing or Refinancing Costs"]
[null,null,null,"Bank Charges"]
[null,null,null,"Body Corporate / Strata Levies"]
[null,null,null,"Cleaning"]
[null,null,null,"Electricity & Gas"]
[null,null,null,"Gardening / Lawnmowing"]
[null,null,null,"GST on Management Fees"]
[null,null,null,"Inspections, Reports, Valuations"]
[null,null,null,"Insurance - Building and/or Contents"]
[null,null,null,"Insurance - Landlord"]
[null,null,null,"Interest on Mortgage"]
[null,null,null,"Land Tax"]
[null,null,null,"Lease Preparation Fees"]
[null,null,null,"Legal Expenses"]
[null,null,null,"Pest Control"]
[null,null,null,"Rates - Council"]
[null,null,null,"Rates - Water"]
[null,null,null,"Repairs - Electrical"]
[null,null,null,"Repairs - Plumbing"]
[null,null,null,"Repairs - Other"]
[null,null,null,"Stationery, Postage, Telephone"]
[null,null,null,"Other Expenses"]
[]
[]
[]
[]
[]
[]
[null,null,null,"CAPITAL ITEMS"]
[null,null,null,"(eg: furniture, electrical equipment, carpets, hot water system, structural improvements)"]
[]
[null,null,null,"Please list separately, with purchase date",null,null,null,null,null,null,null,"Date",null,"$",null,null,"Date",null,"$",null,null,"Date",null,"$"]
[]
[]
[]
[]
[]
[]
[]
[]
[]
[]
[null,null,null,"Total Costs & Expenses",null,null,null,null,null,null,null,null,null,{"$f":"SUM(N192:P235)","v":0},null,null,null,null,{"$f":"SUM(S192:U235)","v":0},null,null,null,null,{"$f":"SUM(X192:Z235)","v":0}]
[]
[null,null,null,"In addition to the above information, please attach copies of any depreciation or capital allowance schedules"]
[null,null,null,"(unless you have already provided these)."]
[]
[null,null,null,"Has KMT Consulting previously accounted for ALL of these properties?",null,null,null,null,null,null,null,null,null,null,null,null,null,null,null,null,null,{"$f":"IF(B241=\"\",\"\",B241)","v":""}]
[]
[null,null,null,"Please provide the following information (unless you have already done so in a previous year):"]
[]
[null,null,null,null,null,null,null,null,null,null,null,"Property 1",null,null,null,null,"Property 2",null,null,null,null,"Property 3"]
[null,null,null,"Your ownership percentage"]
[null,null,null,"Date of purchase"]
[null,null,null,"Date you started collecting rent"]
[null,null,null,"Purchase price (incl. all incidentals)"]
[null,null,null,"Borrowing expenses"]
[]
[]
[null,null,null,"Have you received ANY OTHER INCOME which has not yet been included?",null,null,null,null,null,null,null,null,null,null,null,null,null,null,null,null,null,{"$f":"IF(B253=\"\",\"\",B253)","v":""}]
[]
[null,null,null,"Please provide details below:"]
[]
[null,null,null,"Type and source of income",null,null,null,null,null,null,null,null,null,null,"Gross",null,null,"Tax Withheld"]
[]
[]
[]
[null,null,null,{"$f":"IF(finalise=\"\",\"\",IF(AND(otherincyn=\"Yes\",SUM(O258:T260)=0),\"Input required\",\"\"))","v":""},null,null,null,null,null,null,null,null,null,null,null,null,null,null,null,null,null,null,null,null,null,null,null,null,null,null,null,null,null,null,null,null,null,{"$f":"IF(D261=\"\",0,1)","v":0}]
[]
[]
[]
[]
[null,null,null,"DEDUCTIBLE EXPENSES"]
[]
[null,null,null,"Please ensure that you list ONLY those expenses which you have incurred to earn your income. There must be a clear connection"]
[null,null,null,"between the nature of the expense and your occupation. Where expenses are partly for private purposes, these must be"]
[null,null,null,"apportioned on a reasonable basis. You are required to retain documentary evidence of all claims for at least 5 years."]
[null,null,null,"If requested by the ATO, you MUST be able to substantiate all claims listed here."]
[]
[null,null,null,"Did you incur any deductible expenses AS AN EMPLOYEE?",null,null,null,null,null,null,null,null,null,null,null,null,null,null,null,null,null,{"$f":"IF(B273=\"\",\"\",B273)","v":""}]
[]
[null,null,null,{"$f":"IF(AND(employeeyn=\"No\",wreyn=\"Yes\"),\"You have NOT indicated any employee income above. Please check before proceeding.\",IF(wreyn=\"No\",\"The Work-Related Expenses section of this form is not applicable.\",\"\"))","v":""}]
[]
[]
[null,null,null,"Did you have to use your personal CAR for work purposes (other than to or from work)?",null,null,null,null,null,null,null,null,null,null,null,null,null,null,null,null,null,{"$f":"IF(B278=\"\",\"\",B278)","v":""}]
[null,null,null,"(eg: for mail or banking, between jobs or offices, visiting customers or suppliers, attending training)?"]
[]
[]
[null,null,null,"Did you travel more than 5,000 kms for work purposes?",null,null,null,null,null,null,null,null,null,null,null,null,null,null,null,null,null,{"$f":"IF(B282=\"\",\"\",B282)","v":""}]
[]
[null,null,null,"Please complete the following information (reasonable estimates are acceptable):"]
[]
[null,null,null,"Destination and purpose of trip",null,null,null,null,null,null,null,null,null,null,"No of trips",null,"Kms per trip",null,"Total Kms"]
[]
[null,null,null,null,null,null,null,null,null,null,null,null,null,null,null,null,null,null,{"$f":"IF(O288=\"\",Q288,O288*Q288)","v":0}]
[null,null,null,null,null,null,null,null,null,null,null,null,null,null,null,null,null,null,{"$f":"IF(O289=\"\",Q289,O289*Q289)","v":0}]
[null,null,null,null,null,null,null,null,null,null,null,null,null,null,null,null,null,null,0]
[null,null,null,null,null,null,null,null,null,null,null,null,null,null,null,null,null,null,{"$f":"IF(O291=\"\",Q291,O291*Q291)","v":0}]
[null,null,null,null,null,null,null,null,null,null,null,null,null,null,null,null,null,null,0]
[null,null,null,null,null,null,null,null,null,null,null,null,null,null,null,null,null,null,0]
[null,null,null,null,null,null,null,null,null,null,null,null,null,null,null,null,null,null,0]
[null,null,null,null,null,null,null,null,null,null,null,null,null,null,null,null,null,null,0]
[null,null,null,null,null,null,null,null,null,null,null,null,null,null,null,null,null,null,0]
[null,null,null,null,null,null,null,null,null,null,null,null,null,null,null,null,null,null,0]
[null,null,null,null,null,null,null,null,null,null,null,null,null,null,null,null,null,null,0]
[null,null,null,null,null,null,null,null,null,null,null,null,null,null,null,null,null,null,0]
[null,null,null,null,null,null,null,null,null,null,null,null,null,null,null,null,null,null,0]
[null,null,null,null,null,null,null,null,null,null,null,null,null,null,null,null,null,null,0]
[null,null,null,null,null,null,null,null,null,null,null,null,null,null,null,null,null,null,0]
[null,null,null,{"$f":"IF(finalise=\"\",\"\",IF(AND(caryn=\"Yes\",fivekyn=\"No\",SUM(O288:R302)=0),\"Input required\",\"\"))","v":""},null,null,null,null,null,null,null,null,null,null,null,null,null,null,{"$f":"SUM(S288:T302)","v":0},null,null,null,null,null,null,null,null,null,null,null,null,null,null,null,null,null,null,{"$f":"IF(D303=\"\",0,1)","v":0}]
[]
[]
[null,null,null,"Do you want to base your claim on a valid LOG BOOK which is less than 5 years old?",null,null,null,null,null,null,null,null,null,null,null,null,null,null,null,null,null,{"$f":"IF(B306=\"\",\"\",B306)","v":""}]
[]
[null,null,null,{"$f":"IF(logbkyn=\"No\",\"The claim on your tax return will be limited to 5,000 kms.\",\"\")","v":""}]
[]
[null,null,null,"What was the main purpose of your travel?"]
[]
[]
[null,null,null,"Please provide the following information:"]
[]
[null,null,null,"What was the main purpose of your travel?"]
[]
[]
[null,null,null,"Make & model of vehicle >",null,null,null,null,null,null,null,null,null,null,null,null,null,null,"Purchase price > ",null,null,null,null,null,"Date purchased > "]
[]
[null,null,null,"Work-related use of vehicle as calculated in log book >"]
[]
[null,null,null,"Vehicle Expenses Incurred",null,null,null,null,null,null,null,"$"]
[null,null,null,"Fuel & Oil"]
[null,null,null,"Registration"]
[null,null,null,"CTP greenslip insurance"]
[null,null,null,"Other insurance"]
[null,null,null,"Service"]
[null,null,null,"Tyres"]
[null,null,null,"Other repairs"]
[null,null,null,"Lease payments"]
[null,null,null,"Loan Interest (see note below)"]
[]
[]
[null,null,null,"Total Vehicle Expenses",null,null,null,null,null,null,null,{"$f":"SUM(L322:N333)","v":0}]
[null,null,null,{"$f":"IF(finalise=\"\",\"\",IF(AND(logbkyn=\"Yes\",SUM(L323:N333)=0),\"Input required\",\"\"))","v":""},null,null,null,null,null,null,null,null,null,null,null,null,null,null,null,null,null,null,null,null,null,null,null,null,null,null,null,null,null,null,null,null,null,{"$f":"IF(D335=\"\",0,1)","v":0}]
[null,null,null,"Note:  If loan interest is not known, please provide the following:"]
[]
[null,null,null,"Amount borrowed"]
[null,null,null,"Amount of each repayment"]
[null,null,null,"Repayment frequency",null,null,null,null,null,null,null,null,null,null,"(ie: Weekly / Fortnightly / Monthly)"]
[null,null,null,"Term of the loan (number of years)"]
[null,null,null,"Final residual payment required (if any)?"]
[]
[]
[]
[null,null,null,"Did you incur any other TRAVEL EXPENSES (other than to-or-from work)?",null,null,null,null,null,null,null,null,null,null,null,null,null,null,null,null,null,{"$f":"IF(B346=\"\",\"\",B346)","v":""}]
[null,null,null,"(eg: Tolls, taxis, trains, parking, airfares, meals, accommodation)"]
[]
[null,null,null,"Please provide the following information:"]
[]
[null,null,null,"Type of travel expense and purpose of trip",null,null,null,null,null,null,null,null,null,null,"Cost $"]
[]
[]
[]
[]
[]
[]
[]
[]
[]
[]
[null,null,null,{"$f":"IF(finalise=\"\",\"\",IF(AND(travyn=\"Yes\",SUM(O352:Q361)=0),\"Input required\",\"\"))","v":""},null,null,null,null,null,null,null,null,null,null,null,null,null,null,null,null,null,null,null,null,null,null,null,null,null,null,null,null,null,null,null,null,null,{"$f":"IF(D362=\"\",0,1)","v":0}]
[]
[null,null,null,"Did you have to wear PROTECTIVE CLOTHING or a UNIFORM?",null,null,null,null,null,null,null,null,null,null,null,null,null,null,null,null,null,{"$f":"IF(B364=\"\",\"\",B364)","v":""}]
[null,null,null,"Note that conventional clothing - (eg: a business suit or general office attire) - is NOT deductible."]
[]
[null,null,null,"Please provide the following information:"]
[null,null,null,"For your convenience, the most common items have been pre-filled. You can delete or change them if necessary."]
[]
[null,null,null,"Clothing and Uniform expense details",null,null,null,null,null,null,null,null,null,null,"Cost $"]
[null,null,null,"Uniforms"]
[null,null,null,"Boots"]
[null,null,null,"Gloves, Safety wear"]
[null,null,null,"Hats, Sunscreen"]
[null,null,null,"Other protective clothing"]
[]
[]
[null,null,null,{"$f":"IF(finalise=\"\",\"\",IF(AND(clothyn=\"Yes\",SUM(O371:Q377)=0),\"Input required\",\"\"))","v":""},null,null,null,null,null,null,null,null,null,null,null,null,null,null,null,null,null,null,null,null,null,null,null,null,null,null,null,null,null,null,null,null,null,{"$f":"IF(D378=\"\",0,1)","v":0}]
[]
[null,null,null,"Did you undertake EDUCATION which directly relates to your employment?",null,null,null,null,null,null,null,null,null,null,null,null,null,null,null,null,null,{"$f":"IF(B380=\"\",\"\",B380)","v":""}]
[]
[null,null,null,"Please provide the following information:"]
[null,null,null,"For your convenience, the most common items have been pre-filled. You can delete or change them if necessary."]
[]
[null,null,null,"Name of course:"]
[]
[null,null,null,"Education expenses incurred",null,null,null,null,null,null,null,null,null,null,"Cost $",null,null,"%"]
[null,null,null,"Course fees",null,null,null,null,null,null,null,null,null,null,null,null,null,"Work-related use\nif NOT\n100%"]
[null,null,null,"Textbooks"]
[null,null,null,"Stationery"]
[null,null,null,"Travel to courses (trains, buses, taxis)"]
[null,null,null,"Travel to courses (by car) - Number of kilometers only",null,null,null,null,null,null,null,null,null,null,"kms"]
[null,null,null,"Internet use"]
[null,null,null,"Computers / Electronic tablets"]
[null,null,null,"Computer software & accessories"]
[]
[]
[null,null,null,{"$f":"IF(finalise=\"\",\"\",IF(AND(educyn=\"Yes\",SUM(O388:Q397)=0),\"Input required\",\"\"))","v":""},null,null,null,null,null,null,null,null,null,null,null,null,null,null,null,null,null,null,null,null,null,null,null,null,null,null,null,null,null,null,null,null,null,{"$f":"IF(D398=\"\",0,1)","v":0}]
[]
[null,null,null,"Did you incur any OTHER WORK-RELATED EXPENSES?",null,null,null,null,null,null,null,null,null,null,null,null,null,null,null,null,null,{"$f":"IF(B400=\"\",\"\",B400)","v":""}]
[null,null,null,"(EG: Union fees, tools, equipment, stationery, telephone, home office)?"]
[]
[null,null,null,"Please provide the following information:"]
[null,null,null,"For your convenience, the most common items have been pre-filled. You can delete or change them if necessary."]
[]
[null,null,null,"Other work-related expenses",null,null,null,null,null,null,null,null,null,null,"Cost $",null,null,"%"]
[null,null,null,"Union fees",null,null,null,null,null,null,null,null,null,null,null,null,null,"Work-related use\nif NOT\n100%"]
[null,null,null,"Other professional memberships"]
[null,null,null,"Licences, registrations"]
[null,null,null,"Training, Professional development"]
[null,null,null,"Stationery, Resources, Ink"]
[null,null,null,"Tools & equipment (see below if more than $300 per item)"]
[null,null,null,"Computer software & accessories"]
[null,null,null,"Internet use *"]
[null,null,null,"Mobile phone use *"]
[null,null,null,"Electricity for home office - Number of hours per week",null,null,null,null,null,null,null,null,null,null,"hrs per week"]
[]
[]
[]
[]
[]
[]
[null,null,null,{"$f":"IF(finalise=\"\",\"\",IF(AND(otherwreyn=\"Yes\",SUM(O407:Q422)+SUM(O430:Q434)=0),\"Input required\",\"\"))","v":""},null,null,null,null,null,null,null,null,null,null,null,null,null,null,null,null,null,null,null,null,null,null,null,null,null,null,null,null,null,null,null,null,null,{"$f":"IF(D423=\"\",0,1)","v":0}]
[null,null,null," *  Claims for use of internet and mobile phone are attracting increasing scrutiny by the ATO."]
[null,null,null,"     In most cases, a 4-week diary is required to substantiate the work-related portion of use."]
[]
[null,null,null,"If you purchased tools or equipment costing MORE THAN $300 each, please provide details here:",null,null,null,null,null,null,null,null,null,null,null,null,null,null,null,null,null,{"$f":"IF(B427=\"\",\"\",B427)","v":""}]
[]
[null,null,null,"Description of tools or equipment",null,null,null,null,null,null,null,null,null,null,"Cost $"]
[]
[]
[]
[]
[]
[]
[]
[null,null,null,"Did you make any DONATIONS to any registered charities or School Building Funds?",null,null,null,null,null,null,null,null,null,null,null,null,null,null,null,null,null,{"$f":"IF(B437=\"\",\"\",B437)","v":""}]
[]
[null,null,null,"Please provide the following details:"]
[]
[null,null,null,"Name of Charity or Deductible Recipient",null,null,null,null,null,null,null,null,null,null,"$ Amount"]
[]
[]
[]
[]
[]
[]
[]
[]
[]
[]
[null,null,null,{"$f":"IF(finalise=\"\",\"\",IF(AND(donationsyn=\"Yes\",SUM(O442:Q451)=0),\"Input required\",\"\"))","v":""},null,null,null,null,null,null,null,null,null,null,null,null,null,null,null,null,null,null,null,null,null,null,null,null,null,null,null,null,null,null,null,null,null,{"$f":"IF(D452=\"\",0,1)","v":0}]
[]
[]
[null,null,null,"Did you pay another TAX AGENT (ie: not KMT Consulting) for your PRIOR YEAR tax return?",null,null,null,null,null,null,null,null,null,null,null,null,null,null,null,null,null,{"$f":"IF(B455=\"\",\"\",B455)","v":""}]
[]
[null,null,null,"Please provide the following details:"]
[]
[null,null,null,"Name of Tax Agent (if known)",null,null,null,null,null,null,null,null,null,null,"$ Amount"]
[]
[null,null,null,{"$f":"IF(finalise=\"\",\"\",IF(AND(otheragentyn=\"Yes\",O460=0),\"Input required\",\"\"))","v":""},null,null,null,null,null,null,null,null,null,null,null,null,null,null,null,null,null,null,null,null,null,null,null,null,null,null,null,null,null,null,null,null,null,{"$f":"IF(D461=\"\",0,1)","v":0}]
[]
[null,null,null,"Did you make any DEDUCTIBLE SUPER CONTRIBUTIONS (OTHER THAN through your employer)?",null,null,null,null,null,null,null,null,null,null,null,null,null,null,null,null,null,{"$f":"IF(B463=\"\",\"\",B463)","v":""}]
[]
[]
[null,null,null,"Has the Fund acknowledged your intention to claim these contributions?",null,null,null,null,null,null,null,null,null,null,null,null,null,{"$f":"IF(AND(dedsuperyn=\"Yes\",noiyn=\"\"),\"Please select >\",\"\")","v":""},null,null,null,{"$f":"IF(B466=\"\",\"\",B466)","v":""},null,null,null,null,null,null,null,null,null,null,null,null,null,null,null,{"$f":"IF(R466=\"\",0,1)","v":0}]
[null,null,null,{"$f":"IF(AND(dedsuperyn=\"Yes\",noiyn=\"No\"),\"You will need to notify your Fund AND receive acknowledgement before claiming these contributions.\",\"\")","v":""}]
[]
[null,null,null,"Please provide the following details:"]
[]
[null,null,null,"Name of Superannuation Fund",null,null,null,null,null,null,null,"ABN of Fund",null,null,"Member or Account No.",null,null,null,null,"$ Amount"]
[]
[]
[null,null,null,{"$f":"IF(finalise=\"\",\"\",IF(AND(dedsuperyn=\"Yes\",SUM(T472:V473)=0),\"Input required\",\"\"))","v":""},null,null,null,null,null,null,null,null,null,null,null,null,null,null,null,null,null,null,null,null,null,null,null,null,null,null,null,null,null,null,null,null,null,{"$f":"IF(D474=\"\",0,1)","v":0}]
[]
[null,null,null,"Did you incur any OTHER DEDUCTIBLE EXPENSES which you have NOT YET INCLUDED?",null,null,null,null,null,null,null,null,null,null,null,null,null,null,null,null,null,{"$f":"IF(B476=\"\",\"\",B476)","v":""}]
[null,null,null,"(eg:  Income protection insurance; Expenses relating to dividend or investment income)?"]
[]
[null,null,null,"Please provide details below:"]
[]
[null,null,null,"Description of Expense",null,null,null,null,null,null,null,null,null,null,null,null,null,"$ Amount"]
[]
[]
[]
[null,null,null,{"$f":"IF(finalise=\"\",\"\",IF(AND(otherdedsyn=\"Yes\",SUM(R482:T484)=0),\"Input required\",\"\"))","v":""},null,null,null,null,null,null,null,null,null,null,null,null,null,null,null,null,null,null,null,null,null,null,null,null,null,null,null,null,null,null,null,null,null,{"$f":"IF(D485=\"\",0,1)","v":0}]
[]
[]
[]
[]
[]
[null,null,null,"OTHER ITEMS"]
[]
[]
[null,null,null,"Did you have PRIVATE HEALTH INSURANCE?",null,null,null,null,null,null,null,null,null,null,null,null,null,null,null,null,null,{"$f":"IF(B494=\"\",\"\",B494)","v":""}]
[]
[]
[null,null,null,"These details are usually available from the ATO. Do you want us to rely on the ATO information?",null,null,null,null,null,null,null,null,null,null,null,null,null,null,null,null,null,{"$f":"IF(B497=\"\",\"\",B497)","v":""}]
[]
[null,null,null,"Please provide the following details, or attach the annual tax statement from your insurer."]
[]
[null,null,null,"Member Number",null,null,null,"Fund ID",null,"Eligible premiums",null,null,"Govt Rebate received",null,null,"Rebate Code"]
[]
[]
[]
[]
[]
[]
[null,null,null,"The number of days you had an appropriate level of hospital cover (if not for the whole year):"]
[]
[]
[null,null,null,"How many DEPENDANT CHILDREN do you have?"]
[]
[null,null,null,"Do you have a SPOUSE (either married or de-facto)?",null,null,null,null,null,null,null,null,null,null,null,null,null,null,null,null,null,{"$f":"IF(B513=\"\",\"\",B513)","v":""}]
[]
[null,null,null,"Please provide the following information for your spouse:",null,null,null,null,null,null,null,null,null,null,null,null,null,null,null,null,null,{"$f":"IF(B515=\"\",\"\",B515)","v":""}]
[null,null,null,"(NOT REQUIRED if this information has been separately provided by your spouse)"]
[]
[null,null,null,"First Name:",null,null,null,null,null,null,null,null,null,null,"Family name:  ",null,null,null,null,null,null,null,null,null,"Date of Birth:  "]
[null,null,null,null,null,null,null,null,null,null,null,null,null,null,null,null,null,null,null,null,null,null,null,null,null,null,"dd/mm/yy"]
[null,null,null,"SPOUSE income details:"]
[null,null,null,"Taxable Income:"]
[null,null,null,"Reportable Fringe Benefits:"]
[null,null,null,"Reportable Super Contributions:"]
[null,null,null,"Govt pensions not included above:"]
[null,null,null,"Exempt pensions not included above:"]
[null,null,null,"Child support paid (if any):"]
[]
[]
[]
[]
[]
[null,null,null,"BANKING DETAILS"]
[]
[null,null,null,"It is now mandatory to provide BANK ACCOUNT DETAILS for ATO refunds. Please select ONE ONLY of the following options:"]
[]
[null,null,null,"1.","KMT Consulting already has my bank account details and they have not changed.",null,null,null,null,null,null,null,null,null,null,null,null,null,null,null,null,{"$f":"IF(bank1yn=\"Yes\",\"Yes\",\"\")","v":""}]
[]
[null,null,null,"2.","My details have changed, OR I would like to provide them again.",null,null,null,null,null,null,null,null,null,null,null,null,null,null,null,null,{"$f":"IF(bank2yn=\"Yes\",\"Yes\",\"\")","v":""}]
[]
[null,null,null,"3.","I am a new client, OR I am providing these details for the first time.",null,null,null,null,null,null,null,null,null,null,null,null,null,null,null,null,{"$f":"IF(bank3yn=\"Yes\",\"Yes\",\"\")","v":""}]
[]
[null,null,null,"If option 2 or 3 is chosen . . . ",null,null,null,null,null,null,null,null,null,null,null,null,null,{"$f":"IF(finalise=\"\",\"\",IF(AND(bank1yn=\"\",bank2yn=\"\",bank3yn=\"\"),\"Please select one of the above options\",\"\"))","v":""},null,null,null,null,null,null,null,null,null,null,null,null,null,null,null,null,null,null,null,{"$f":"IF(R542=\"\",0,1)","v":0}]
[null,null,null,"Please ensure that the following details are ACCURATELY provided."]
[]
[null,null,null,"Account Name",null,null,null,null,null,null,null,null,null,"BSB",null,null,"Account No."]
[]
[null,null,null,{"$f":"IF(finalise=\"\",\"\",IF(AND(OR(bank2yn=\"Yes\",bank3yn=\"Yes\"),OR(bankinput=\"\",N546=\"\",Q546=\"\")),\"Input required\",\"\"))","v":""},null,null,null,null,null,null,null,null,null,"(6 digits)",null,null,"(up to 9 digits)",null,null,null,null,null,null,null,null,null,null,null,null,null,null,null,null,null,null,null,null,{"$f":"IF(D547=\"\",0,1)","v":0}]
[]
[]
[]
[]
[]
[]
[null,null,null,"FINALISATION OF THE FORM AND LIST OF DOCUMENTS REQUIRED",null,null,null,null,null,null,null,null,null,null,null,null,null,null,null,null,null,null,null,null,null,null,null,null,null,null,null,null,null,null,null,null,null,{"$f":"SUM(AL3:AL553)","v":0}]
[]
[null,null,null,"Please ensure that you have completed ALL of the information which is relevant to your circumstances.",null,null,null,null,null,null,null,null,null,null,null,null,null,null,null,null,null,{"$f":"IF(B556=\"\",\"\",B556)","v":""}]
[null,null,null,"If you have any questions or need to provide additional information, please call or email us."]
[]
[null,null,null,"Or, you can add a message here:"]
[]
[]
[]
[]
[]
[]
[]
[]
[]
[null,null,null,{"$f":"IF(AL554>0,\"Some mandatory input is missing. It is indicated by RED FONT above. Please check and correct before proceeding.\",\"\")","v":""}]
[]
[null,null,null,"Save this file to your device."]
[null,null,null,"Then send it to us either by email or by using the \"Online Submission\" page on our website."]
[]
[null,null,null,"You will also need to include the attachments listed below (if any):"]
[]
[null,null,null,{"$f":"IF(AL576=\"\",\"\",\"Proof of identity (eg: birth certificate, driver's licence or passport)\")","v":""},null,null,null,null,null,null,null,null,null,null,null,null,null,null,null,null,null,null,null,null,null,null,null,null,null,null,null,null,null,null,null,null,null,{"$f":"IF(existingyn=\"No\",\"Yes\",\"\")","v":""}]
[null,null,null,{"$f":"IF(AL577=\"\",\"\",\"Employer payment summaries which are NOT available on MyGov\")","v":""},null,null,null,null,null,null,null,null,null,null,null,null,null,null,null,null,null,null,null,null,null,null,null,null,null,null,null,null,null,null,null,null,null,{"$f":"IF(pmtsumyn=\"No\",\"Yes\",\"\")","v":""}]
[null,null,null,{"$f":"IF(AL578=\"\",\"\",\"Employer Termination Statements which are NOT available on MyGov\")","v":""},null,null,null,null,null,null,null,null,null,null,null,null,null,null,null,null,null,null,null,null,null,null,null,null,null,null,null,null,null,null,null,null,null,{"$f":"IF(etpattachyn=\"No\",\"Yes\",\"\")","v":""}]
[null,null,null,{"$f":"IF(AL579=\"\",\"\",\"Details of Government pensions or allowances received\")","v":""},null,null,null,null,null,null,null,null,null,null,null,null,null,null,null,null,null,null,null,null,null,null,null,null,null,null,null,null,null,null,null,null,null,{"$f":"IF(AND(atopensyn=\"No\",SUM(O88:T89)=0),\"Yes\",\"\")","v":""}]
[null,null,null,{"$f":"IF(AL580=\"\",\"\",\"Payment summaries from your superannuation fund(s)\")","v":""},null,null,null,null,null,null,null,null,null,null,null,null,null,null,null,null,null,null,null,null,null,null,null,null,null,null,null,null,null,null,null,null,null,{"$f":"IF(supfundyn=\"Yes\",\"Yes\",\"\")","v":""}]
[null,null,null,{"$f":"IF(AL581=\"\",\"\",\"Share dividend statements (unless ALL required information has been provided above)\")","v":""},null,null,null,null,null,null,null,null,null,null,null,null,null,null,null,null,null,null,null,null,null,null,null,null,null,null,null,null,null,null,null,null,null,{"$f":"IF(atodivsyn=\"No\",\"Yes\",\"\")","v":""}]
[null,null,null,{"$f":"IF(AL582=\"\",\"\",\"Share plan statements provided to you by your employer\")","v":""},null,null,null,null,null,null,null,null,null,null,null,null,null,null,null,null,null,null,null,null,null,null,null,null,null,null,null,null,null,null,null,null,null,{"$f":"IF(esasyn=\"Yes\",\"Yes\",\"\")","v":""}]
[null,null,null,{"$f":"IF(AL583=\"\",\"\",\"Tax summary information from your managed fund(s)\")","v":""},null,null,null,null,null,null,null,null,null,null,null,null,null,null,null,null,null,null,null,null,null,null,null,null,null,null,null,null,null,null,null,null,null,{"$f":"IF(mgdinvyn=\"Yes\",\"Yes\",\"\")","v":""}]
[null,null,null,{"$f":"IF(AL584=\"\",\"\",\"Details of business income and expenses. (See the Business Checklist on our website).\")","v":""},null,null,null,null,null,null,null,null,null,null,null,null,null,null,null,null,null,null,null,null,null,null,null,null,null,null,null,null,null,null,null,null,null,{"$f":"IF(businessyn=\"Yes\",\"Yes\",\"\")","v":""}]
[null,null,null,{"$f":"IF(AL585=\"\",\"\",\"Purchase and sale documents for capital gains or losses\")","v":""},null,null,null,null,null,null,null,null,null,null,null,null,null,null,null,null,null,null,null,null,null,null,null,null,null,null,null,null,null,null,null,null,null,{"$f":"IF(cgtyn=\"Yes\",\"Yes\",\"\")","v":""}]
[null,null,null,{"$f":"IF(AL586=\"\",\"\",\"Annual rental summaries from estate agents or property managers\")","v":""},null,null,null,null,null,null,null,null,null,null,null,null,null,null,null,null,null,null,null,null,null,null,null,null,null,null,null,null,null,null,null,null,null,{"$f":"IF(attachrentyn=\"Yes\",\"Yes\",\"\")","v":""}]
[null,null,null,{"$f":"IF(AL587=\"\",\"\",\"Annual health insurance statement (unless ALL required information has been provided above)\")","v":""},null,null,null,null,null,null,null,null,null,null,null,null,null,null,null,null,null,null,null,null,null,null,null,null,null,null,null,null,null,null,null,null,null,{"$f":"IF(phiatoyn=\"No\",\"Yes\",\"\")","v":""}]
[]
[null,null,null,"END OF FORM"]